[Event "Late-Titled-Tuesday-Blitz-June-18-2024"]
[Site "Chess.com"]
[Date "2024.06.18"]
[Round "11"]
[White "MaestroCheck"]
[Black "Individoom"]
[Result "0-1"]
[WhiteElo "2624"]
[BlackElo "2789"]
[TimeControl "180+1"]
[EndTime "16:06:31 PDT"]
[Termination "Individoom won by checkmate"]

1. e4 {[%clk 0:03:00.9]} 1... c5 {[%clk 0:02:57.7]} 2. Nc3 {[%clk 0:02:58.7]}
2... Nc6 {[%clk 0:02:56.5]} 3. Bb5 {[%clk 0:02:57.3]} 3... g6 {[%clk 0:02:56.2]}
4. Bxc6 {[%clk 0:02:56.1]} 4... dxc6 {[%clk 0:02:56.2]} 5. d3 {[%clk 0:02:55.3]}
5... Bg7 {[%clk 0:02:56.3]} 6. Be3 {[%clk 0:02:55.6]} 6... b6 {[%clk 0:02:55.8]}
7. Qd2 {[%clk 0:02:55.1]} 7... e5 {[%clk 0:02:49.9]} 8. f4 {[%clk 0:02:53.2]}
8... Nf6 {[%clk 0:02:38.3]} 9. h3 {[%clk 0:02:50.7]} 9... exf4 {[%clk
0:02:35.9]} 10. Bxf4 {[%clk 0:02:51.6]} 10... Nh5 {[%clk 0:02:35]} 11. Bg5
{[%clk 0:02:33.6]} 11... Qd6 {[%clk 0:02:14.9]} 12. Nge2 {[%clk 0:02:31.3]}
12... h6 {[%clk 0:02:05.9]} 13. Be3 {[%clk 0:02:29]} 13... g5 {[%clk 0:02:04.5]}
14. O-O-O {[%clk 0:02:23.5]} 14... Be6 {[%clk 0:02:04.3]} 15. g4 {[%clk
0:02:19.3]} 15... Ng3 {[%clk 0:02:00.1]} 16. Nxg3 {[%clk 0:02:16.2]} 16... Qxg3
{[%clk 0:02:01]} 17. Rdg1 {[%clk 0:02:06.7]} 17... Qd6 {[%clk 0:01:58.8]} 18. h4
{[%clk 0:02:06.2]} 18... f6 {[%clk 0:01:35.1]} 19. hxg5 {[%clk 0:01:57.7]} 19...
fxg5 {[%clk 0:01:31.9]} 20. Ne2 {[%clk 0:01:35.2]} 20... O-O-O {[%clk
0:01:26.3]} 21. Qe1 {[%clk 0:01:21.6]} 21... Qe5 {[%clk 0:01:19.9]} 22. Qc3
{[%clk 0:01:19.2]} 22... Qc7 {[%clk 0:01:18.3]} 23. Qe1 {[%clk 0:01:17.3]} 23...
Bxa2 {[%clk 0:01:08.8]} 24. Bd2 {[%clk 0:01:09.7]} 24... Be6 {[%clk 0:01:07.8]}
25. Bc3 {[%clk 0:01:10.2]} 25... Be5 {[%clk 0:01:06.5]} 26. Bxe5 {[%clk
0:01:09.5]} 26... Qxe5 {[%clk 0:01:06.3]} 27. Qg3 {[%clk 0:01:09.3]} 27... Qxg3
{[%clk 0:01:04.4]} 28. Rxg3 {[%clk 0:01:08.5]} 28... Rdf8 {[%clk 0:01:03.8]} 29.
Rh2 {[%clk 0:01:04.6]} 29... a5 {[%clk 0:00:58.5]} 30. Kd2 {[%clk 0:01:02.5]}
30... a4 {[%clk 0:00:56.7]} 31. d4 {[%clk 0:01:00.1]} 31... c4 {[%clk
0:00:51.5]} 32. Nc3 {[%clk 0:00:54.4]} 32... b5 {[%clk 0:00:51.4]} 33. d5 {[%clk
0:00:48.9]} 33... Bd7 {[%clk 0:00:51.1]} 34. e5 {[%clk 0:00:45.8]} 34... cxd5
{[%clk 0:00:47.4]} 35. Nxd5 {[%clk 0:00:46.4]} 35... Kb7 {[%clk 0:00:47]} 36.
Nf6 {[%clk 0:00:44.8]} 36... Be6 {[%clk 0:00:46.9]} 37. Rgh3 {[%clk 0:00:45.2]}
37... Rd8+ {[%clk 0:00:44]} 38. Kc1 {[%clk 0:00:35.4]} 38... Rd4 {[%clk
0:00:43.4]} 39. Rxh6 {[%clk 0:00:34.1]} 39... Rhd8 {[%clk 0:00:43.3]} 40. c3
{[%clk 0:00:26]} 40... Rd1+ {[%clk 0:00:39.6]} 41. Kc2 {[%clk 0:00:26.6]} 41...
Re1 {[%clk 0:00:39.6]} 42. Nh7 {[%clk 0:00:18.3]} 42... Rxe5 {[%clk 0:00:37.9]}
43. Nxg5 {[%clk 0:00:17.1]} 43... Bxg4 {[%clk 0:00:34.2]} 44. Rh7+ {[%clk
0:00:17.2]} 44... Kb8 {[%clk 0:00:33.6]} 45. Rh8 {[%clk 0:00:13]} 45... Bf5+
{[%clk 0:00:32.6]} 46. Kc1 {[%clk 0:00:12.9]} 46... Re1# {[%clk 0:00:32.6]} 0-1

[Event "Late-Titled-Tuesday-Blitz-June-18-2024"]
[Site "Chess.com"]
[Date "2024.06.18"]
[Round "11"]
[White "chess94cu"]
[Black "monomita"]
[Result "0-1"]
[WhiteElo "2641"]
[BlackElo "2768"]
[TimeControl "180+1"]
[EndTime "16:06:32 PDT"]
[Termination "monomita won by resignation"]

1. d4 {[%clk 0:03:00.6]} 1... e6 {[%clk 0:03:00.9]} 2. c4 {[%clk 0:02:56.9]}
2... Nf6 {[%clk 0:03:01.3]} 3. Nc3 {[%clk 0:02:55.5]} 3... Bb4 {[%clk 0:03:00]}
4. e3 {[%clk 0:02:55.8]} 4... c5 {[%clk 0:02:56.3]} 5. Bd3 {[%clk 0:02:49.8]}
5... O-O {[%clk 0:02:54.8]} 6. Ne2 {[%clk 0:02:48.5]} 6... d5 {[%clk 0:02:53.9]}
7. cxd5 {[%clk 0:02:47.3]} 7... cxd4 {[%clk 0:02:53.5]} 8. exd4 {[%clk
0:02:44.7]} 8... exd5 {[%clk 0:02:49.9]} 9. O-O {[%clk 0:02:41.2]} 9... h6
{[%clk 0:02:50]} 10. h3 {[%clk 0:02:40.5]} 10... Nc6 {[%clk 0:02:48.6]} 11. Bf4
{[%clk 0:02:36.4]} 11... Re8 {[%clk 0:02:48.5]} 12. Rc1 {[%clk 0:02:34.6]} 12...
Bd6 {[%clk 0:02:42.3]} 13. Qd2 {[%clk 0:02:27]} 13... Ne4 {[%clk 0:02:33.8]} 14.
Bxe4 {[%clk 0:02:25.6]} 14... dxe4 {[%clk 0:02:34]} 15. Rfe1 {[%clk 0:02:21.5]}
15... Bb4 {[%clk 0:02:25.8]} 16. a3 {[%clk 0:02:11.6]} 16... Bxc3 {[%clk
0:02:23.7]} 17. bxc3 {[%clk 0:02:12.5]} 17... Na5 {[%clk 0:02:23.2]} 18. d5
{[%clk 0:02:05.6]} 18... Nb3 {[%clk 0:02:22.5]} 19. Qa2 {[%clk 0:01:58.1]} 19...
Nxc1 {[%clk 0:02:22]} 20. Rxc1 {[%clk 0:01:58]} 20... b5 {[%clk 0:02:14]} 21.
Rd1 {[%clk 0:01:43.5]} 21... Bb7 {[%clk 0:02:13]} 22. d6 {[%clk 0:01:38.1]}
22... Qf6 {[%clk 0:02:12.6]} 23. Bg3 {[%clk 0:01:38.1]} 23... Rad8 {[%clk
0:02:11.9]} 24. a4 {[%clk 0:01:34.9]} 24... e3 {[%clk 0:02:05.6]} 25. Nd4 {[%clk
0:01:23.2]} 25... exf2+ {[%clk 0:02:02]} 26. Qxf2 {[%clk 0:01:24.1]} 26... Qxf2+
{[%clk 0:01:59.2]} 27. Bxf2 {[%clk 0:01:25]} 27... bxa4 {[%clk 0:01:56.8]} 28.
Nf5 {[%clk 0:01:17.5]} 28... Re5 {[%clk 0:01:44.2]} 29. g4 {[%clk 0:01:03.9]}
29... Ra5 {[%clk 0:01:40.4]} 30. c4 {[%clk 0:01:01.6]} 30... a3 {[%clk
0:01:37.9]} 31. c5 {[%clk 0:01:01.8]} 31... a2 {[%clk 0:01:34.4]} 32. Bd4 {[%clk
0:01:01.6]} 32... f6 {[%clk 0:01:27.1]} 33. Kf2 {[%clk 0:00:56.7]} 33... Kf7
{[%clk 0:01:24.5]} 34. Ne7 {[%clk 0:00:47]} 34... Ra4 {[%clk 0:01:19.1]} 35. Ba1
{[%clk 0:00:45.4]} 35... Rc4 {[%clk 0:01:18.9]} 36. Rd2 {[%clk 0:00:33.7]} 36...
Rxc5 {[%clk 0:01:17.3]} 37. Rxa2 {[%clk 0:00:34.3]} 37... Rxd6 {[%clk
0:01:17.3]} 38. Rxa7 {[%clk 0:00:33.9]} 38... Rc2+ {[%clk 0:01:13.9]} 39. Ke3
{[%clk 0:00:08]} 39... Re6+ {[%clk 0:01:13.8]} 40. Kd3 {[%clk 0:00:07.9]} 40...
Be4+ {[%clk 0:01:14.3]} 41. Kd4 {[%clk 0:00:08.2]} 41... Rxe7 {[%clk 0:01:14.5]}
42. Rxe7+ {[%clk 0:00:09.1]} 42... Kxe7 {[%clk 0:01:15.4]} 43. Kxe4 {[%clk
0:00:09.8]} 43... Rh2 {[%clk 0:01:15.6]} 44. Bd4 {[%clk 0:00:07.9]} 44... Rxh3
{[%clk 0:01:14.5]} 45. Kf5 {[%clk 0:00:08.5]} 45... Kf7 {[%clk 0:01:14.8]} 46.
Kf4 {[%clk 0:00:08.7]} 46... h5 {[%clk 0:01:12.8]} 47. gxh5 {[%clk 0:00:08.1]}
47... Rh4+ {[%clk 0:01:13.3]} 48. Ke3 {[%clk 0:00:08.5]} 48... Rxh5 {[%clk
0:01:13.8]} 49. Kf3 {[%clk 0:00:08.2]} 49... Rh4 {[%clk 0:01:14.1]} 50. Bf2
{[%clk 0:00:07.5]} 50... Ra4 {[%clk 0:01:15]} 51. Bb6 {[%clk 0:00:06.9]} 51...
g5 {[%clk 0:01:15.9]} 52. Bc5 {[%clk 0:00:07.2]} 52... Kg6 {[%clk 0:01:16.8]}
0-1

[Event "Late-Titled-Tuesday-Blitz-June-18-2024"]
[Site "Chess.com"]
[Date "2024.06.18"]
[Round "11"]
[White "Viktor_Poddubnyi"]
[Black "pinelone"]
[Result "1-0"]
[WhiteElo "2349"]
[BlackElo "2432"]
[TimeControl "180+1"]
[EndTime "16:06:44 PDT"]
[Termination "Viktor_Poddubnyi won on time"]

1. e4 {[%clk 0:03:00]} 1... c6 {[%clk 0:03:00.2]} 2. d4 {[%clk 0:02:59.7]} 2...
d5 {[%clk 0:03:00.5]} 3. exd5 {[%clk 0:03:00.6]} 3... cxd5 {[%clk 0:03:00.7]} 4.
c4 {[%clk 0:03:01.2]} 4... Nf6 {[%clk 0:03:01.1]} 5. Nc3 {[%clk 0:03:01.5]} 5...
Nc6 {[%clk 0:03:01.5]} 6. Bg5 {[%clk 0:03:00.8]} 6... dxc4 {[%clk 0:02:59.2]} 7.
Bxc4 {[%clk 0:02:59.9]} 7... h6 {[%clk 0:02:59.5]} 8. Be3 {[%clk 0:02:59.4]}
8... e6 {[%clk 0:02:59.4]} 9. Nf3 {[%clk 0:02:59.5]} 9... Bd6 {[%clk 0:02:59.2]}
10. O-O {[%clk 0:02:59.1]} 10... O-O {[%clk 0:02:56.7]} 11. Qd2 {[%clk
0:02:58.6]} 11... Ne7 {[%clk 0:02:52.1]} 12. Rfd1 {[%clk 0:02:57.4]} 12... b6
{[%clk 0:02:37.3]} 13. Nb5 {[%clk 0:02:20.8]} 13... Bb7 {[%clk 0:02:34.3]} 14.
Nxd6 {[%clk 0:02:16.1]} 14... Bxf3 {[%clk 0:02:30.3]} 15. Nxf7 {[%clk 0:02:07]}
15... Rxf7 {[%clk 0:02:14.1]} 16. gxf3 {[%clk 0:02:06.2]} 16... Nfd5 {[%clk
0:02:09.3]} 17. Kh1 {[%clk 0:01:47.3]} 17... Nf5 {[%clk 0:02:01.8]} 18. Rg1
{[%clk 0:01:38.7]} 18... Qh4 {[%clk 0:01:53]} 19. Bxd5 {[%clk 0:01:22]} 19...
exd5 {[%clk 0:01:52.3]} 20. Bf4 {[%clk 0:01:20.3]} 20... Qh3 {[%clk 0:01:23.4]}
21. Qd3 {[%clk 0:00:47.2]} 21... Raf8 {[%clk 0:01:07.4]} 22. Be5 {[%clk
0:00:42.3]} 22... Qh5 {[%clk 0:00:27.2]} 23. Rg4 {[%clk 0:00:34.4]} 23... Nh4
{[%clk 0:00:19.9]} 24. Rag1 {[%clk 0:00:26.9]} 24... g5 {[%clk 0:00:16.8]} 25.
f4 {[%clk 0:00:24.6]} 25... Rf5 {[%clk 0:00:11.5]} 26. Qb3 {[%clk 0:00:17.3]}
26... Nf3 {[%clk 0:00:09.8]} 27. Qxd5+ {[%clk 0:00:14]} 27... R5f7 {[%clk
0:00:07.5]} 28. Qxf3 {[%clk 0:00:13.7]} 28... Qg6 {[%clk 0:00:06]} 29. Qd5
{[%clk 0:00:11.7]} 29... Qh5 {[%clk 0:00:04.6]} 30. fxg5 {[%clk 0:00:09.4]}
30... Qh3 {[%clk 0:00:02.4]} 31. g6 {[%clk 0:00:05.6]} 1-0

[Event "Late-Titled-Tuesday-Blitz-June-18-2024"]
[Site "Chess.com"]
[Date "2024.06.18"]
[Round "11"]
[White "harshu27"]
[Black "Chaubunagungamaug1"]
[Result "0-1"]
[WhiteElo "2550"]
[BlackElo "2484"]
[TimeControl "180+1"]
[EndTime "16:06:48 PDT"]
[Termination "Chaubunagungamaug1 won on time"]

1. d4 {[%clk 0:03:00.9]} 1... d5 {[%clk 0:02:58.8]} 2. Bf4 {[%clk 0:03:00.5]}
2... Nf6 {[%clk 0:02:56.3]} 3. Nf3 {[%clk 0:02:58.7]} 3... c5 {[%clk 0:02:56.5]}
4. e3 {[%clk 0:02:58.9]} 4... Nc6 {[%clk 0:02:56.8]} 5. Nbd2 {[%clk 0:02:59]}
5... Qb6 {[%clk 0:02:56.8]} 6. dxc5 {[%clk 0:02:59.1]} 6... Qxb2 {[%clk
0:02:57.2]} 7. Rb1 {[%clk 0:02:59.1]} 7... Qc3 {[%clk 0:02:56.8]} 8. Bb5 {[%clk
0:02:59.6]} 8... e6 {[%clk 0:02:56.8]} 9. O-O {[%clk 0:02:22.4]} 9... Be7 {[%clk
0:02:55.9]} 10. e4 {[%clk 0:02:17.4]} 10... O-O {[%clk 0:02:53.5]} 11. e5 {[%clk
0:02:14.9]} 11... Nd7 {[%clk 0:02:51.7]} 12. Nb3 {[%clk 0:02:13.9]} 12... Qb4
{[%clk 0:02:41.2]} 13. Nbd4 {[%clk 0:02:10.9]} 13... Qxc5 {[%clk 0:02:38.5]} 14.
c3 {[%clk 0:02:05.5]} 14... a6 {[%clk 0:02:07.7]} 15. Bd3 {[%clk 0:01:59.1]}
15... h6 {[%clk 0:02:01.2]} 16. Be3 {[%clk 0:01:47.9]} 16... Nxd4 {[%clk
0:01:46.6]} 17. cxd4 {[%clk 0:01:38.9]} 17... Qa5 {[%clk 0:01:39.8]} 18. Nd2
{[%clk 0:01:11.4]} 18... b5 {[%clk 0:01:32.5]} 19. Qh5 {[%clk 0:00:49.4]} 19...
Qc3 {[%clk 0:00:54.8]} 20. Rb3 {[%clk 0:00:41.7]} 20... Qc7 {[%clk 0:00:52.1]}
21. Bxh6 {[%clk 0:00:36.3]} 21... f5 {[%clk 0:00:26.2]} 22. exf6 {[%clk
0:00:14.5]} 22... Nxf6 {[%clk 0:00:26.1]} 23. Qg6 {[%clk 0:00:12.9]} 23... Bd6
{[%clk 0:00:16]} 24. Bg5 {[%clk 0:00:08.9]} 24... Bd7 {[%clk 0:00:11.4]} 25. Nf3
{[%clk 0:00:05.6]} 25... Be8 {[%clk 0:00:09.2]} 26. Bxf6 {[%clk 0:00:02.3]}
26... Bxg6 {[%clk 0:00:09.2]} 27. Be5 {[%clk 0:00:02.1]} 27... Bxe5 {[%clk
0:00:07.6]} 28. Nxe5 {[%clk 0:00:03]} 28... Bxd3 {[%clk 0:00:07.9]} 29. Rxd3
{[%clk 0:00:03.4]} 29... b4 {[%clk 0:00:06.1]} 30. Rg3 {[%clk 0:00:02]} 30...
Rac8 {[%clk 0:00:05.6]} 31. h3 {[%clk 0:00:02.9]} 31... a5 {[%clk 0:00:04.6]}
32. Kh2 {[%clk 0:00:03.8]} 32... a4 {[%clk 0:00:05.2]} 33. f4 {[%clk 0:00:04.1]}
33... Qc2 {[%clk 0:00:04.4]} 34. Rff3 {[%clk 0:00:03.9]} 34... Qxa2 {[%clk
0:00:03.8]} 35. Rg4 {[%clk 0:00:04.4]} 35... Rc7 {[%clk 0:00:03.7]} 36. Rfg3
{[%clk 0:00:04.8]} 36... b3 {[%clk 0:00:04.3]} 37. h4 {[%clk 0:00:05.6]} 37...
b2 {[%clk 0:00:04.7]} 0-1

[Event "Late-Titled-Tuesday-Blitz-June-18-2024"]
[Site "Chess.com"]
[Date "2024.06.18"]
[Round "11"]
[White "Rainbow2014"]
[Black "rhungaski"]
[Result "0-1"]
[WhiteElo "2503"]
[BlackElo "2616"]
[TimeControl "180+1"]
[EndTime "16:06:51 PDT"]
[Termination "rhungaski won on time"]

1. e4 {[%clk 0:03:00.9]} 1... d6 {[%clk 0:02:59.3]} 2. d4 {[%clk 0:03:00.6]}
2... Nf6 {[%clk 0:02:59.7]} 3. Nc3 {[%clk 0:03:00.6]} 3... c6 {[%clk 0:03:00.4]}
4. a4 {[%clk 0:02:59.9]} 4... Qa5 {[%clk 0:02:57.6]} 5. Bd3 {[%clk 0:02:56]}
5... e5 {[%clk 0:02:57.8]} 6. Ne2 {[%clk 0:02:50.1]} 6... Be7 {[%clk 0:02:56.7]}
7. O-O {[%clk 0:02:43.1]} 7... O-O {[%clk 0:02:56.7]} 8. h3 {[%clk 0:02:34.8]}
8... Nbd7 {[%clk 0:02:45.4]} 9. Be3 {[%clk 0:02:30]} 9... exd4 {[%clk
0:02:27.9]} 10. Nxd4 {[%clk 0:02:17.6]} 10... Nc5 {[%clk 0:02:28.3]} 11. f4
{[%clk 0:02:03.8]} 11... Ne8 {[%clk 0:02:03.5]} 12. Nb3 {[%clk 0:01:34.9]} 12...
Nxb3 {[%clk 0:02:02.4]} 13. cxb3 {[%clk 0:01:35.8]} 13... Bf6 {[%clk 0:01:51.3]}
14. Qc2 {[%clk 0:01:33.9]} 14... Qb4 {[%clk 0:01:48]} 15. e5 {[%clk 0:01:30.2]}
15... dxe5 {[%clk 0:01:43.9]} 16. fxe5 {[%clk 0:01:30.5]} 16... Bxe5 {[%clk
0:01:40.9]} 17. Bxh7+ {[%clk 0:01:30.4]} 17... Kh8 {[%clk 0:01:41.6]} 18. Ne4
{[%clk 0:01:18.9]} 18... Be6 {[%clk 0:01:39.2]} 19. Bf5 {[%clk 0:01:06.8]} 19...
Bd4 {[%clk 0:01:28.3]} 20. Bxd4 {[%clk 0:00:49.5]} 20... Qxd4+ {[%clk
0:01:29.2]} 21. Kh1 {[%clk 0:00:50]} 21... Bd5 {[%clk 0:00:56]} 22. Ng5 {[%clk
0:00:33.3]} 22... Qh4 {[%clk 0:00:50.8]} 23. Nf3 {[%clk 0:00:23.9]} 23... Qh6
{[%clk 0:00:50.5]} 24. Be4 {[%clk 0:00:20.4]} 24... Nf6 {[%clk 0:00:48.8]} 25.
Bxd5 {[%clk 0:00:20.4]} 25... Nxd5 {[%clk 0:00:49.7]} 26. Ne5 {[%clk 0:00:19.1]}
26... Ne3 {[%clk 0:00:44.6]} 27. Qf2 {[%clk 0:00:04.6]} 27... Nxf1 {[%clk
0:00:43]} 28. Rxf1 {[%clk 0:00:05.5]} 28... Qe6 {[%clk 0:00:31.7]} 29. Qh4+
{[%clk 0:00:04.7]} 29... Kg8 {[%clk 0:00:32]} 30. Ng4 {[%clk 0:00:04.6]} 30...
f5 {[%clk 0:00:29.7]} 31. Nh2 {[%clk 0:00:02.7]} 31... Qe4 {[%clk 0:00:23.1]}
32. Qh5 {[%clk 0:00:01.4]} 32... Rae8 {[%clk 0:00:22]} 33. Nf3 {[%clk
0:00:01.7]} 33... Qe2 {[%clk 0:00:22.2]} 34. Rg1 {[%clk 0:00:02.1]} 34... a5
{[%clk 0:00:19.9]} 35. Qh4 {[%clk 0:00:02.5]} 35... Re4 {[%clk 0:00:18.8]} 36.
Qg5 {[%clk 0:00:02.7]} 36... Qe3 {[%clk 0:00:17.3]} 37. Qh5 {[%clk 0:00:02.2]}
37... Qh6 {[%clk 0:00:15.8]} 38. Qxh6 {[%clk 0:00:01.7]} 38... gxh6 {[%clk
0:00:16.7]} 39. Rd1 {[%clk 0:00:02]} 39... Re3 {[%clk 0:00:15.4]} 40. Rd7 {[%clk
0:00:01.8]} 40... Rf7 {[%clk 0:00:15.6]} 41. Rd8+ {[%clk 0:00:01.9]} 41... Kh7
{[%clk 0:00:14.9]} 42. Nd4 {[%clk 0:00:02.5]} 42... Rd3 {[%clk 0:00:14.3]} 0-1

[Event "Late-Titled-Tuesday-Blitz-June-18-2024"]
[Site "Chess.com"]
[Date "2024.06.18"]
[Round "11"]
[White "AlexanderMatlak"]
[Black "Chessdreamer2020"]
[Result "1-0"]
[WhiteElo "2465"]
[BlackElo "2547"]
[TimeControl "180+1"]
[EndTime "16:06:51 PDT"]
[Termination "AlexanderMatlak won on time"]

1. c4 {[%clk 0:03:00.9]} 1... d6 {[%clk 0:02:59.4]} 2. Nf3 {[%clk 0:03:00.8]}
2... e5 {[%clk 0:02:59.4]} 3. Nc3 {[%clk 0:03:01.1]} 3... f5 {[%clk 0:02:59.4]}
4. d3 {[%clk 0:03:01.1]} 4... Nf6 {[%clk 0:02:59.9]} 5. g3 {[%clk 0:03:01.6]}
5... Be7 {[%clk 0:03:00.4]} 6. Bg2 {[%clk 0:03:02.1]} 6... O-O {[%clk
0:03:00.9]} 7. O-O {[%clk 0:03:02.4]} 7... Qe8 {[%clk 0:03:01.5]} 8. b4 {[%clk
0:03:02.3]} 8... Qh5 {[%clk 0:03:01.3]} 9. b5 {[%clk 0:03:02.5]} 9... f4 {[%clk
0:03:00.9]} 10. Nd5 {[%clk 0:03:00.2]} 10... Bd8 {[%clk 0:03:00.2]} 11. Nxf6+
{[%clk 0:02:55.2]} 11... Rxf6 {[%clk 0:02:58.1]} 12. c5 {[%clk 0:02:52.8]} 12...
Bg4 {[%clk 0:02:39.5]} 13. Qb3+ {[%clk 0:02:48.6]} 13... Be6 {[%clk 0:02:34.3]}
14. Qa4 {[%clk 0:02:28.6]} 14... Nd7 {[%clk 0:02:16.3]} 15. cxd6 {[%clk
0:02:27.6]} 15... cxd6 {[%clk 0:02:16.5]} 16. Ba3 {[%clk 0:02:25.4]} 16... Rh6
{[%clk 0:01:53.2]} 17. gxf4 {[%clk 0:01:23.8]} 17... Bg4 {[%clk 0:01:41.2]} 18.
Rfc1 {[%clk 0:01:07.9]} 18... Bxf3 {[%clk 0:01:39.1]} 19. Bxf3 {[%clk
0:01:08.8]} 19... Qxh2+ {[%clk 0:01:35.6]} 20. Kf1 {[%clk 0:01:09.1]} 20... Bh4
{[%clk 0:01:29.3]} 21. Ke1 {[%clk 0:01:08.7]} 21... Qxf2+ {[%clk 0:01:26.9]} 22.
Kd2 {[%clk 0:01:08.1]} 22... exf4 {[%clk 0:01:11.1]} 23. Qe4 {[%clk 0:00:57.6]}
23... Nf6 {[%clk 0:00:56]} 24. Qe6+ {[%clk 0:00:55.4]} 24... Kh8 {[%clk
0:00:50.9]} 25. Rc8+ {[%clk 0:00:47.7]} 25... Rxc8 {[%clk 0:00:50.8]} 26. Qxc8+
{[%clk 0:00:48.5]} 26... Ng8 {[%clk 0:00:51.5]} 27. Rh1 {[%clk 0:00:25.2]} 27...
Qe3+ {[%clk 0:00:45.4]} 28. Kd1 {[%clk 0:00:20.3]} 28... Qe5 {[%clk 0:00:18.7]}
29. Kc2 {[%clk 0:00:12.6]} 29... Bf6 {[%clk 0:00:16]} 30. Rxh6 {[%clk
0:00:11.4]} 30... gxh6 {[%clk 0:00:16.2]} 31. Qc4 {[%clk 0:00:09.7]} 31... Ne7
{[%clk 0:00:10.6]} 32. Bc1 {[%clk 0:00:08.7]} 32... Nf5 {[%clk 0:00:09.3]} 33.
Qc8+ {[%clk 0:00:07.4]} 33... Kg7 {[%clk 0:00:09]} 34. Qxb7+ {[%clk 0:00:06.7]}
34... Kg6 {[%clk 0:00:09]} 35. Qe4 {[%clk 0:00:05.7]} 35... Qc3+ {[%clk
0:00:03.3]} 36. Kd1 {[%clk 0:00:05.1]} 36... Be5 {[%clk 0:00:01.3]} 37. Bg4
{[%clk 0:00:05.1]} 1-0

[Event "Late-Titled-Tuesday-Blitz-June-18-2024"]
[Site "Chess.com"]
[Date "2024.06.18"]
[Round "11"]
[White "marvinguevara"]
[Black "Andrii_Prydun"]
[Result "1-0"]
[WhiteElo "2194"]
[BlackElo "2355"]
[TimeControl "180+1"]
[EndTime "16:06:51 PDT"]
[Termination "marvinguevara won on time"]

1. e4 {[%clk 0:03:00.9]} 1... c6 {[%clk 0:02:51.4]} 2. d4 {[%clk 0:03:01.2]}
2... d5 {[%clk 0:02:51]} 3. e5 {[%clk 0:03:01.8]} 3... Be6 {[%clk 0:02:48.7]} 4.
Bd3 {[%clk 0:02:52.3]} 4... Nd7 {[%clk 0:02:41.1]} 5. f4 {[%clk 0:02:39.8]} 5...
Nh6 {[%clk 0:02:34.6]} 6. h3 {[%clk 0:02:25.9]} 6... c5 {[%clk 0:02:33]} 7. g4
{[%clk 0:02:19.2]} 7... c4 {[%clk 0:02:09]} 8. Be2 {[%clk 0:02:16.3]} 8... g6
{[%clk 0:02:03.1]} 9. Be3 {[%clk 0:02:12.4]} 9... Rb8 {[%clk 0:02:01]} 10. Qd2
{[%clk 0:02:10.5]} 10... Qb6 {[%clk 0:01:45]} 11. Nc3 {[%clk 0:02:05.9]} 11...
Ng8 {[%clk 0:01:32]} 12. Nf3 {[%clk 0:01:47.8]} 12... h5 {[%clk 0:01:30.3]} 13.
O-O-O {[%clk 0:01:40.2]} 13... Qc6 {[%clk 0:01:23.5]} 14. Ng5 {[%clk 0:01:36.9]}
14... b5 {[%clk 0:00:50.1]} 15. Rdf1 {[%clk 0:01:29.9]} 15... b4 {[%clk
0:00:48.2]} 16. Nd1 {[%clk 0:01:29.1]} 16... b3 {[%clk 0:00:45.3]} 17. Kb1
{[%clk 0:01:17.5]} 17... Qa4 {[%clk 0:00:41.3]} 18. cxb3 {[%clk 0:01:12.4]}
18... cxb3 {[%clk 0:00:39.2]} 19. Nc3 {[%clk 0:01:10.1]} 19... bxa2+ {[%clk
0:00:37.6]} 20. Ka1 {[%clk 0:01:09]} 20... Qb3 {[%clk 0:00:35.9]} 21. Bd1 {[%clk
0:00:58.1]} 21... Qb4 {[%clk 0:00:30.6]} 22. f5 {[%clk 0:00:47.4]} 22... gxf5
{[%clk 0:00:29.8]} 23. gxf5 {[%clk 0:00:46.9]} 23... Bxf5 {[%clk 0:00:30.7]} 24.
Rxf5 {[%clk 0:00:46.1]} 24... Nh6 {[%clk 0:00:29.2]} 25. Rf2 {[%clk 0:00:40.2]}
25... Nb6 {[%clk 0:00:28.8]} 26. Bxh5 {[%clk 0:00:26.5]} 26... Nc4 {[%clk
0:00:25]} 27. Qc1 {[%clk 0:00:23.5]} 27... Kd8 {[%clk 0:00:01]} 28. Rxf7 {[%clk
0:00:20.1]} 28... Nxf7 {[%clk 0:00:01]} 29. Nxf7+ {[%clk 0:00:19.9]} 29... Kc8
{[%clk 0:00:01.2]} 30. Nxh8 {[%clk 0:00:20.8]} 30... Bg7 {[%clk 0:00:01]} 31.
Nf7 {[%clk 0:00:19.1]} 31... a5 {[%clk 0:00:01.2]} 32. Bg4+ {[%clk 0:00:18.5]}
32... Kb7 {[%clk 0:00:01.3]} 33. Rh2 {[%clk 0:00:19.1]} 33... a4 {[%clk
0:00:01.5]} 34. Nxd5 {[%clk 0:00:13.3]} 34... Qb3 {[%clk 0:00:01]} 35. Bg1
{[%clk 0:00:07.8]} 35... Ka6 {[%clk 0:00:01.1]} 36. Rc2 {[%clk 0:00:06.8]} 36...
Rc8 {[%clk 0:00:01.1]} 37. Rc3 {[%clk 0:00:06.4]} 1-0